Cogmind - Beta 17 @@@ ROGUE MODE // 2026.07.29 @ 01:58:04 Player: LawfulKami Result: Self-destructed Performance ------------- Evolutions (1) 500 Regions Visited (3) 600 Robots Destroyed (3) 15 Value Destroyed (30) 30 Prototype IDs (1) 20 Alien Tech Used (0) 0 Bonus (0) 0 TOTAL SCORE: 1165 Bonus ------- None Cogmind --------- Core Integrity 263/400 Matter 231/300 Energy 18/100 System Corruption 5% Temperature Cool (0) Movement Hovering (120) Ox1 Location -9/Materials Parts ------- > --- POWER (1) -------- (None) > --- PROPULSION (3) --- Improved Hover Unit > --- UTILITY (3) ------ Weight Redist. System > --- WEAPON (2) ------- Advanced Beam Cannon Advanced Beam Cannon > --- INVENTORY (5) ---- (None) Peak State ------------ > --- POWER ------------ Ion Engine > --- PROPULSION ------- Improved Hover Unit Improved Hover Unit > --- UTILITY ---------- Small Storage Unit Hardened Light Armor Plating > --- WEAPON ----------- Advanced Beam Cannon Advanced Beam Cannon > --- INVENTORY -------- Ion Engine Improved Hover Unit Improved Hover Unit Advanced Beam Cannon [Rating: 14] Favorites ----------- Power Ion Engine Engine Ion Engine Propulsion Flight Unit Leg Aluminum Leg Hover Unit Improved Hover Unit Flight Unit Flight Unit Utility Small Storage Unit Device Tractor Beam Storage Small Storage Unit Protection Hardened Light Armor Plating Weapon Welding Torch Energy Gun EM Pulse Gun Energy Cannon Advanced Beam Cannon Ballistic Gun Assault Rifle Special Weapon Welding Torch Build | -11 -10 -10 -9 ------- Run | Yrd Mat Min Mat Slots Evolved 2 | . . . 2 Power . | . . . . Propulsion 1 | . . . 1 Utility 1 | . . . 1 Weapon . | . . . . Parts Attached 25 | 7 10 2 6 Power 2 | 1 . 1 . Engine 2 | 1 . 1 . Core . | . . . . Reactor . | . . . . Propulsion 8 | 2 4 . 2 Treads . | . . . . Leg 2 | 2 . . . Wheel . | . . . . Hover 4 | . 2 . 2 Flight 2 | . 2 . . Utility 7 | 1 3 1 2 Device 5 | . 2 1 2 Storage 1 | 1 . . . Processor . | . . . . Hackware . | . . . . Protection 1 | . 1 . . Artifact . | . . . . Weapon 8 | 3 3 . 2 Energy Gun 2 | 2 . . . Energy Cannon 4 | . 2 . 2 Ballistic Gun 1 | 1 . . . Ballistic Cannon . | . . . . Launcher . | . . . . Special Weapon 1 | . 1 . . Impact Weapon . | . . . . Slashing Weapon . | . . . . Piercing Weapon . | . . . . Special Melee Weapon . | . . . . Unidentified Prototypes 1 | . 1 . . Parts Lost 9 | . 1 . 8 Power 1 | . . . 1 Propulsion 3 | . . . 3 Utility 2 | . . . 2 Weapon 3 | . 1 . 2 Highest Loss Streak 8 | . 1 . 8 To Critical Strikes . | . . . . Average Backups 3 | 1 4 5 3 Power . | . 1 1 . Propulsion 1 | . 2 2 1 Utility . | . . . . Weapon 1 | . 1 2 2 Tool/Special . | . . . . Unused Backups 3 | . 2 1 . Power 1 | . . 1 . Propulsion 2 | . 2 . . Utility . | . . . . Weapon . | . . . . Tool/Special . | . . . . Average Slot Usage (%) 76 | . 80 85 65 Engine 12 | . 14 14 10 Hover 7 | . 14 . 3 Flight 16 | . 7 28 18 Device 13 | . 1 28 19 Storage 4 | . 10 . . Protection 2 | . 6 . . Energy Gun 3 | . 7 . . Energy Cannon 8 | . 14 . 6 Special Weapon 7 | . 2 14 9 Peak Build Rating 14 | 6 14 7 11 Average Rating 7 | 5 9 6 8 On Entrance 5 | . 6 7 7 Avg Prop Armor Cover (%) 7 | . . . 7 Naked Turns . | . . . . Heaviest Build 23 | 14 23 8 10 Greatest Support 20 | 20 14 8 14 Greatest Overweight (x) 5 | 2 5 . 2 Average Overweight (x) . | . . . . Largest Inventory Capacity 8 | 8 8 5 5 Average Capacity 6 | 7 7 5 5 Most Carried 6 | 4 6 5 4 Average Carried 3 | 1 4 4 3 Final Capacity 8 | 8 5 5 5 Final Carried 5 | 4 5 4 . Class Distribution -------------------- 100% | Mutant Dominant Class ---------------- Mutant | -10/Materials Mutant | -10/Mines Mutant | -9/Materials Resources | -11 -10 -10 -9 ----------- Run | Yrd Mat Min Mat Matter Collected 401 | 153 46 202 . Remotely 202 | . . 202 . Salvage Created 46 | . 46 . . Parts 4 | . 4 . . Haulers Intercepted . | . . . . Recyclers Shooed . | . . . . Parts Field Recycled . | . . . . Retrieved Matter . | . . . . Parts Self-Destructed . | . . . . Prevented . | . . . . Parts Restored . | . . . . Kills | -11 -10 -10 -9 ------- Run | Yrd Mat Min Mat Combat Hostiles Destroyed 3 | . 3 . . Cannons 3 | . 3 . . Classes Destroyed 1 | . 1 . . Swarmer 3 | . 3 . . Best Kill Streak 3 | . 3 . . Combat Bots Only 3 | . 3 . . Max Kills in Single Turn 1 | . 1 . . Gunslinging . | . . . . Exploded . | . . . . Melee . | . . . . Uniques/NPCs Destroyed . | . . . . Combat | -11 -10 -10 -9 -------- Run | Yrd Mat Min Mat Hostile Shots Fired 92 | . 28 . 64 Missed 32 | . 8 . 24 Hits 60 | . 20 . 40 Projectile 60 | . 20 . 40 Critical Strikes 2 | . 1 . 1 Damage Taken 545 | . 163 . 382 Core 174 | . 37 . 137 Absorbed by Shields . | . . . . Core Remaining (%) 92 | 100 . 85 . Volleys Fired 11 | 1 8 . 2 Largest 2 | 2 2 . 1 Hottest 136 | 90 136 . 56 Shots Fired 16 | 2 12 . 2 Gun 2 | 2 . . . Cannon 13 | . 12 . 1 Launcher . | . . . . Special 1 | . . . 1 Kinetic . | . . . . Thermal 14 | 1 12 . 1 Explosive . | . . . . Electromagnetic 2 | 1 . . 1 Robot Hit Streak 3 | . 3 . . Robot Miss Streak 6 | 2 6 . 1 Penetration Max . | . . . . Secondary Targets . | . . . . Shots Hit Robots 5 | . 5 . . Core Hits 3 | . 3 . . Critical Kills . | . . . . Critical Parts Destroyed . | . . . . Critical Strikes . | . . . . Melee Attacks . | . . . . Impact . | . . . . Slashing . | . . . . Piercing . | . . . . Sneak Attacks . | . . . . Combat Hostiles . | . . . . Follow-up Attacks . | . . . . Damage Inflicted 176 | . 144 . 32 Guns . | . . . . Cannons 144 | . 144 . . Explosions . | . . . . Melee . | . . . . Ramming 32 | . . . 32 Kinetic . | . . . . Thermal 144 | . 144 . . Explosive . | . . . . Electromagnetic . | . . . . Impact . | . . . . Slashing . | . . . . Piercing . | . . . . Highest Corruption 5 | . . . 5 Average Corruption 5 | . . . 5 Corruption Purged . | . . . . Corruption Blocked . | . . . . Effects 2 | . . . 2 Message Errors 1 | . . . 1 Energy Discharges 1 | . . . 1 Overload Shots . | . . . . Overflow Damage . | . . . . Projectiles . | . . . . Explosions . | . . . . Melee . | . . . . Knockbacks . | . . . . Impact . | . . . . Kinetic . | . . . . Secondary . | . . . . Self-Inflicted Damage 32 | . . . 32 Shots . | . . . . Rammed . | . . . . Targets Rammed . | . . . . Kicked . | . . . . Crushed . | . . . . Highest Temperature 439 | 30 439 . 14 Average Temperature 217 | 17 238 . 10 Received Heat Transfer 6 | . 6 . . Effects 4 | . 4 . . Shutdowns 1 | . 1 . . Interference 1 | . 1 . . Short Circuit 1 | . 1 . . Damage (minor) 1 | . 1 . . Siege Activations . | . . . . Martial Activations . | . . . . Shielding Activations . | . . . . Robots Disrupted . | . . . . Combat Hostiles . | . . . . Robots Corrupted . | . . . . Combat Hostiles . | . . . . Parts Fried . | . . . . Impact Corruptions . | . . . . Robots Melted . | . . . . Combat Hostiles . | . . . . Parts Melted 1 | . 1 . . Heat Transferred 259 | . 259 . . Parts Sabotaged . | . . . . Parts Stolen . | . . . . Parts Stripped . | . . . . Power Chain Reactions . | . . . . Alert | -11 -10 -10 -9 ------- Run | Yrd Mat Min Mat Maximum Alert Level . | . . . . Low Security (%) 100 | 100 100 100 100 Level 1 . | . . . . Level 2 . | . . . . Level 3 . | . . . . Level 4 . | . . . . Level 5 . | . . . . High Security . | . . . . Max Security . | . . . . Peak Influence 75 | . 75 21 2 Initial 21 | . . 21 . Average 10 | . 25 9 . Influence Increases 118 | . 85 15 18 Destroy 0b10 Robot/C 60 | . 60 . . Destroy Leader 10 | . 10 . . Successful Hack 2 | . . . 2 Destroy Structure 1 | . . . 1 Partial Spotted 15 | . 15 . . Lose Combat Pursuer 30 | . . 15 15 Influence Decreases 103 | . 30 70 3 Entered New Map 34 | . . 34 . Time Decay 66 | . 30 36 . Lost Part 3 | . . . 3 Squads Dispatched . | . . . . Investigation . | . . . . Extermination . | . . . . Reinforcement . | . . . . Assault . | . . . . Garrison . | . . . . Intercept . | . . . . Searches Triggered . | . . . . Construction Impeded . | . . . . Haulers Reinforced . | . . . . Active Scanning Responses . | . . . . Cargo Convoy Interrupts . | . . . . Stealth | -11 -10 -10 -9 --------- Run | Yrd Mat Min Mat Distress Signals 2 | . 1 . 1 Communications Jammed . | . . . . Distress Signals . | . . . . Times Spotted 19 | . 9 2 8 Peak Tracking Total 6 | . 5 2 6 Tactical Retreats 2 | . . 1 1 Traps | -11 -10 -10 -9 ------- Run | Yrd Mat Min Mat Traps Triggered 1 | . . . 1 Indirectly . | . . . . Trap Hack Attempts . | . . . . Triggered . | . . . . Disarmed . | . . . . Reprogrammed . | . . . . Reused . | . . . . Traps Extracted . | . . . . Installed . | . . . . Triggered . | . . . . Machines | -11 -10 -10 -9 ---------- Run | Yrd Mat Min Mat Machines Disabled . | . . . . Max in Single Turn . | . . . . Machines Repaired . | . . . . Machines Dismantled . | . . . . Machines Sabotaged . | . . . . Overloaded Fab Kills . | . . . . Hacking | -11 -10 -10 -9 --------- Run | Yrd Mat Min Mat Machines Accessed 2 | . . . 2 Terminals 2 | . . . 2 Fabricators . | . . . . Repair Stations . | . . . . Recycling Units . | . . . . Scanalyzers . | . . . . Garrison Access . | . . . . Total Hacks 3 | . . . 3 Successful 1 | . . . 1 Failed 2 | . . . 2 Catastrophic 1 | . . . 1 Database Lockouts . | . . . . Manual . | . . . . Terminals 3 | . . . 3 Fabricators . | . . . . Repair Stations . | . . . . Recycling Units . | . . . . Scanalyzers . | . . . . Garrison Access . | . . . . Terminal Hacks 1 | . . . 1 Record 1 | . . . 1 Fabricator Hacks . | . . . . Repair Station Hacks . | . . . . Recycling Unit Hacks . | . . . . Scanalyzer . | . . . . Garrison Access Hacks . | . . . . Unauthorized Hacks . | . . . . Terminals . | . . . . Fabricators . | . . . . Repair Stations . | . . . . Recycling Units . | . . . . Scanalyzers . | . . . . Garrison Access . | . . . . Data Cores Recovered . | . . . . Used . | . . . . Hacking Detections 2 | . . . 2 Full Trace Events . | . . . . Feedback Events . | . . . . Feedback Blocked . | . . . . Robot Schematics Acquired . | . . . . Robots Built . | . . . . Authchips . | . . . . Time . | . . . . Total Robot Build Rating . | . . . . Part Schematics Acquired . | . . . . Parts Built . | . . . . Authchips . | . . . . Time . | . . . . Total Part Build Rating . | . . . . Part Studies Acquired . | . . . . Parts Repaired . | . . . . Time . | . . . . Parts Recycled . | . . . . Recycled Matter . | . . . . Retrieved Matter . | . . . . Retrieved Components . | . . . . Parts Scanalyzed . | . . . . Part Schematics Acquired . | . . . . Parts Damaged . | . . . . Bothacking | -11 -10 -10 -9 ------------ Run | Yrd Mat Min Mat Used RIF Installer . | . . . . Robots Hacked . | . . . . Non-combat . | . . . . Combat . | . . . . Robot Hacks Applied . | . . . . Relay Couplers Released . | . . . . Fabnet Peak Effective % . | . . . . Robots Rewired . | . . . . Allies Hacked . | . . . . Hacks Repelled . | . . . . Allies | -11 -10 -10 -9 -------- Run | Yrd Mat Min Mat Total Allies . | . . . . Largest Group . | . . . . Highest-Rated Group . | . . . . Highest-Rated Ally . | . . . . Total Orders . | . . . . Ally Attacks . | . . . . Total Damage . | . . . . Kills . | . . . . Allies Corrupted . | . . . . Allies Melted . | . . . . Intel | -11 -10 -10 -9 ------- Run | Yrd Mat Min Mat Active Infowar (turns) 102 | . . 66 36 Terrain 102 | . . 66 36 Robot Analysis Total . | . . . . Derelict Logs Recovered . | . . . . Drone Launches . | . . . . Drone Recoveries . | . . . . Exploration | -11 -10 -10 -9 ------------- Run | Yrd Mat Min Mat Turns Passed 443 | 114 150 83 96 Spaces Moved 610 | 85 140 213 172 Core 29 | 16 6 . 7 Treads . | . . . . Legs 69 | 69 . . . Wheels . | . . . . Hover 59 | . 38 . 21 Flight 453 | . 96 213 144 Fastest Speed 37 | 50 37 37 37 Average Speed 57 | 113 70 37 44 Slowest Speed 440 | 150 440 37 150 Overloaded Moves . | . . . . Propulsion Burnouts . | . . . . Robots Hopped 7 | . 2 1 4 Potential Cave-ins . | . . . . Cave-ins Triggered . | . . . . Exploration Rate (%) 22 | 4 26 50 11 Regions Visited 3 Branch Regions 1 Pre-discovered Areas . | . . . . Known Exits Taken . | . . . . Unknown Exits Taken 3 | 1 1 1 . Scrap Searched 1 | . . 1 . Spaces Dug . | . . . . Terrain Destroyed 1 | . . . 1 Melee . | . . . . Projectile . | . . . . AOE . | . . . . Terrain Rammed 1 | . . . 1 Walls Destroyed 1 | . . . 1 Machines Disabled . | . . . . Actions | -11 -10 -10 -9 --------- Run | Yrd Mat Min Mat Total 673 | 96 178 216 183 Wait 3 | . 2 . 1 Move 593 | 84 135 210 164 Hop 7 | . 2 1 4 Pick Up 7 | 4 3 . . Fast Attach 26 | 6 12 2 6 Attach 4 | . . . 4 Detach 3 | . 3 . . Swap 1 | 1 . . . Drop 17 | . 13 3 1 Fire 11 | 1 8 . 2 Melee . | . . . . Ram 1 | . . . 1 Kick . | . . . . Crush . | . . . . Escape Stasis . | . . . . Rewire . | . . . . Trap . | . . . . Miscellaneous . | . . . . Route ------- -11/Scrapyard -10/Materials -10/Mines (discovered 2 exits: *Mat x2) -9/Materials (discovered 1 exit: [*Min]) History --------- Turn | Location | Event 5 | -11/Scrapyard | Discovered new exit (range 16) 115 | -11/Scrapyard | Entered Materials 259 | -10/Materials | Discovered new exit (range 16) 265 | -10/Materials | Entered Mines 266 | -10/Mines | Assembled infested the area 271 | -10/Mines | Assisted by a Guerilla fighting off Assembled 297 | -10/Mines | Discovered new exit (range 8) 303 | -10/Mines | Build established: Mutant 340 | -10/Mines | Discovered new exit (range 12) 348 | -10/Mines | Entered Materials 348 | -9/Materials | Evolved 2 slots: Propulsion x1, Utility x1 381 | -9/Materials | Discovered new exit (range 12) 444 | -9/Materials | Self-destructed Last Messages --------------- [Complex 0b10]. 00381_ EXIT=FOUND 00384_ Terrain Scanner destroyed. 00391_ Slammed into Wall. 00391_ Weight Redist. System destroyed. 00391_ System corrupted by crushing effect (+4). 00391_ Destabilizing: System corrupted (+1). 00391_ Lgt. Ion Engine broken. 00391_ Destabilizing: Short circuit. 00393_ Dropped Tractor Beam. 00400_ Acquired Weight Redist. System. 00409_ System corrupted: Energy discharge (-4). 00412_ S-10 Pest destroyed. 00421_ Flight Unit destroyed. 00422_ Welding Torch destroyed. 00422_ Flight Unit destroyed. 00430_ Lgt. EM Pulse Cannon destroyed. 00433_ E7 XI: WEPEWFT7REVSR:YPVKTS71U=HEIF02 00436_ Broken Lgt. Ion Engine destroyed. 00439_ Imp. Hover Unit destroyed. Map ----- +----------------------------------------------------+ | ???????????????????????????????????????? | | ???????????????????????????????????????? | | ???????????????????????????????????????? | | ???????????????????????????????????????? | | ???????????????????????????????????????? | | ?????????????##########????????????????? | | ?????????????# #????????????????? | | ???? ##??????# #????????????????? | | ???? ??????# #????????????????? | | ???? ??????# #????????????????? | | ???? ??????# #????????????????? | | ???? ??????# #????????????????? | | ???? ??????# #????????????????? | | ???? ??????# #????????????????? | | #??? !?????## #????????????????? | | ???? < ??????#####+####????????????????? | | ???? ????????# #######+## ???? | | ??#? ????????# ???? | | ????# ######???# " | T ????? | | ????# # #???# % ???? | | ????# #"" #???# #######+## ???? | | ????# #"T #######s####????????????????? | | ????# #"" ## s #????????????????? | | ????# # ## s[ #????????????????? | | ?#??# # ## s #????????????????? | | ????# # ## @ #????????????????? | | ????# ##+##############????????????????? | | ????# + T #???#????????????????? | | ??#?## # #????????????????????? | | ?#???# # #????????????????????? | | ?????# # #????????????????????? | | ?????# + #???#????????????????? | | ?????# # """ #????????????????????? | | ?????# # """ #?#??????????????????? | | ?????# # """ #????????????????????? | | ?????# # #????????????????????? | | ?????# ###########???????????????????? | | #????# # #???????????????????? | | ?????# # """ #???????????????????? | | ?????# # """ #???????????????????? | | ?????# + """ #???????????????????? | | ?????# # / #???????????????????? | | ?????# # / #???????????????????? | | ?????# # #???????????????????? | | ?????##### #???????????????????? | | ?????????###########???????????????????? | | ???????????????????????? ??????????????? | | ?#?????????????????????????????????????? | | ???????????????????????????????????????? | | ???????????????????????????????????????? | +----------------------------------------------------+ Best States ------------- Heat Dissipation 28 Energy Generation 10 Energy Capacity 250 Matter Stores 291 Matter Capacity 300 Sight Range 16 Terrain Scan Range 14 Terrain Scan Density 10 Additional Mass Support 6 Armor Coverage 150 Evasion (%) 62 Item Schematics ----------------- None Robot Schematics ------------------ None Fabricated ------------ Nothing Repaired ---------- Nothing Studied --------- None Alien Tech Used ----------------- None Achievements -------------- Use The Force Challenges ------------ None Game ------ Seed ElectronCloakDirector Manual? 0 Play Time 00:17:27 Cumulative 3.9 hours Start 2026.07.29 @ 01:41:00 End 2026.07.29 @ 01:58:04 Sessions 1 Manual Loads 0 Difficulty Rogue Special Mode None Game No. 4 Rogue 4 Adventurer 0 Explorer 0 Win Type - Total 0 Types 0/0/0/0/0/0/0/0/0/0 Lore% 0 Gallery% 8 Achievement% 6 Wizard Run 0 Options --------- Layout 1 ASCII 0 Keyboard 0 Movement Arrows Keybinds 0 Fullscreen 1 Font 24/Smallcaps Map View 50x35 Zoom Use 0% Tactical HUD 1 Map Filters NONE Filters NONE Steam 1 RUN: bacf84ce-05f4-4f3d-8ee4-d3c07b3d8b68